fUST/lending_fUST_20250420
["ID","MTS","AMOUNT","RATE_DAILY","PERIOD"]
[358434068,1745145036833,-500.0,0.00021095,2]
[358434069,1745145036844,-858.12,0.00021095,2]
[358434070,1745145036856,-1543.49,0.00021095,2]
[358434071,1745145036866,-500.0,0.00021095,2]
[358434072,1745145036875,-500.0,0.00021095,2]
[358434073,1745145036886,-530.21,0.00021369,2]
[358434074,1745145036897,-500.0,0.00021369,2]
[358434075,1745145036906,-774.8,0.00021369,2]
[358434076,1745145036915,-500.0,0.00021369,2]
[358434077,1745145036926,-500.0,0.00021369,2]
[358434078,1745145036935,-858.12,0.00021369,2]
[358434079,1745145036944,-1543.49,0.00021369,2]
[358434080,1745145036953,-500.0,0.00021369,2]
[358434081,1745145036963,-500.0,0.00021369,2]
[358434082,1745145036972,-600.0,0.00021411,2]
[358434083,1745145036982,-530.21,0.00021643,2]
[358434084,1745145036991,-500.0,0.00021643,2]
[358434085,1745145037000,-774.8,0.00021643,2]
[358434086,1745145037009,-285.00348232,0.00021643,2]
[358434087,1745145037019,-500.0,0.00021643,2]
[358434088,1745145037029,-858.12,0.00021643,2]
[358434089,1745145037038,-1543.49,0.00021643,2]
[358434090,1745145037048,-500.0,0.00021643,2]
[358434091,1745145037057,-500.0,0.00021643,2]
[358434092,1745145037065,-3900.77312846,0.00021762,3]
[358434093,1745145037074,-530.21,0.00021917,2]
[358434094,1745145037083,-500.0,0.00021917,2]
[358434095,1745145037092,-774.8,0.00021917,2]
[358434096,1745145037101,-500.0,0.00021917,2]
[358434097,1745145037110,-858.12,0.00021917,2]
[358434098,1745145037119,-1543.49,0.00021917,2]
[358434099,1745145037128,-159.74982941,0.00021917,2]
[358434100,1745145037137,-500.0,0.00021917,2]
[358434101,1745145037147,-432.250904,0.00021918,2]
[358434102,1745145037156,-500.0,0.00021956,2]
[358434103,1745145037165,-4170.5386144,0.00022,7]
[358434104,1745145037175,-500.0,0.00022027,2]
[358434105,1745145037184,-500.0,0.00022027,2]
[358434106,1745145037195,-578.59486516,0.00022027,2]
[358434107,1745145037208,-530.21,0.00022191,2]
[358434108,1745145037217,-500.0,0.00022191,2]
[358434109,1745145037228,-774.8,0.00022191,2]
[358434110,1745145037238,-500.0,0.00022191,2]
[358434111,1745145037248,-858.12,0.00022191,2]
[358434112,1745145037259,-1543.49,0.00022191,2]
[358434113,1745145037269,-500.0,0.00022191,2]
[358434114,1745145037279,-23084.76478262,0.0002224,2]
[358434115,1745145037291,-173.043,0.00022465,2]
[358434116,1745145037302,-530.21,0.00022465,2]
[358434117,1745145037312,-283.11771156,0.00022465,2]
[358434118,1745145037322,-774.8,0.00022465,2]
[358434119,1745145037332,-500.0,0.00022465,2]
[358434120,1745145037341,-858.12,0.00022465,2]
[358434121,1745145037351,-1543.49,0.00022465,2]
[358434122,1745145037361,-500.0,0.00022465,2]
[358434123,1745145037370,-153.69,0.000226,31]
[358434124,1745145037380,-153.69,0.000226,31]
[358434125,1745145037389,-153.69,0.000226,31]
[358434126,1745145037398,-153.69,0.000226,31]
[358434127,1745145037408,-153.69,0.000226,31]
[358434128,1745145037418,-153.69,0.000226,31]
[358434129,1745145037428,-153.69,0.000226,31]
[358434130,1745145037437,-153.69,0.000226,31]
[358434131,1745145037447,-153.69,0.000226,31]
[358434132,1745145037457,-153.69,0.000226,31]
[358434133,1745145037466,-153.69,0.000226,31]
[358434134,1745145037475,-153.69,0.000226,31]
[358434135,1745145037485,-153.69,0.000226,31]
[358434136,1745145037494,-160.0,0.00022623,2]
[358434137,1745145037505,-3900.77312846,0.00022624,4]
[358434138,1745145037516,-530.21,0.00022739,2]
[358434139,1745145037525,-774.8,0.00022739,2]
[358434140,1745145037535,-500.0,0.00022739,2]
[358434141,1745145037545,-858.12,0.00022739,2]
[358434142,1745145037554,-1543.49,0.00022739,2]
[358434143,1745145037564,-500.0,0.00022739,2]
[358434144,1745145037575,-587.0,0.00022775,2]
[358434145,1745145037585,-587.0,0.00022996,2]
[358434146,1745145037595,-530.21,0.00023013,2]
[358434147,1745145037606,-122.40628575,0.00023013,2]
[358434148,1745145037692,-652.39371425,0.00023013,2]
[358434149,1745145037703,-500.0,0.00023013,2]
[358434150,1745145037714,-858.12,0.00023013,2]
[358434151,1745145037725,-1543.49,0.00023013,2]
[358434152,1745145037736,-500.0,0.00023013,2]
[358434153,1745145037745,-900.0,0.00023054,2]
[358434154,1745145037756,-530.21,0.00023287,2]
[358434155,1745145037766,-630.3447974,0.00023287,2]
[358434157,1745145038519,-500.0,0.00019178,2]
[358434158,1745145038529,-500.0,0.00019178,2]
[358434159,1745145038539,-416.27619749,0.00019178,2]
[358434160,1745145038549,-500.0,0.00019178,2]
[358434161,1745145038558,-505.91567899,0.00019452,2]
[358434162,1745145038568,-160.0,0.00019583,2]
[358434163,1745145038578,-144.4552026,0.00023287,2]
[358434164,1745145038587,-500.0,0.00023287,2]
[358434165,1745145038597,-858.12,0.00023287,2]
[358434166,1745145038606,-1543.49,0.00023287,2]
[358434167,1745145038616,-500.0,0.00023287,2]
[358434168,1745145038625,-3900.77312846,0.00023486,4]
[358434169,1745145038634,-530.21,0.00023561,2]
[358434170,1745145038644,-774.8,0.00023561,2]
[358434171,1745145038653,-500.0,0.00023561,2]
[358434172,1745145038663,-858.12,0.00023561,2]
[358434173,1745145038673,-1543.49,0.00023561,2]
[358434174,1745145038683,-500.0,0.00023561,2]
[358434175,1745145038692,-153.69,0.000236,31]
[358434176,1745145038701,-153.69,0.000236,31]
[358434177,1745145038711,-153.69,0.000236,31]
[358434178,1745145038721,-153.69,0.000236,31]
[358434179,1745145038730,-153.69,0.000236,31]
[358434180,1745145038740,-153.69,0.000236,31]
[358434181,1745145038749,-153.69,0.000236,31]
[358434182,1745145038758,-153.69,0.000236,31]
[358434183,1745145038768,-153.69,0.000236,31]
[358434184,1745145038777,-153.69,0.000236,31]
[358434185,1745145038787,-153.69,0.000236,31]
[358434186,1745145038796,-153.69,0.000236,31]
[358434187,1745145038806,-153.69,0.000236,31]
[358434188,1745145038815,-153.69,0.000236,31]
[358434189,1745145038826,-153.69,0.000236,31]
[358434190,1745145038835,-153.69,0.000236,31]
[358434191,1745145038845,-153.69,0.000236,31]
[358434192,1745145038855,-153.69,0.000236,31]
[358434193,1745145038864,-153.69,0.000236,31]
[358434194,1745145038874,-153.69,0.000236,31]
[358434195,1745145038883,-530.21,0.00023835,2]
[358434196,1745145038893,-774.8,0.00023835,2]
[358434197,1745145038902,-500.0,0.00023835,2]
[358434198,1745145038912,-858.12,0.00023835,2]
[358434199,1745145038922,-1543.49,0.00023835,2]
[358434200,1745145038931,-500.0,0.00023835,2]
[358434201,1745145038940,-2000.0,0.00023884,4]
[358434202,1745145038950,-5000.0,0.00024072,2]
[358434203,1745145038959,-5000.0,0.00024072,2]
[358434204,1745145038969,-530.21,0.00024109,2]
[358434205,1745145038979,-774.8,0.00024109,2]
[358434206,1745145038988,-500.0,0.00024109,2]
[358434207,1745145038998,-858.12,0.00024109,2]
[358434208,1745145039007,-1543.49,0.00024109,2]
[358434209,1745145039017,-500.0,0.00024109,2]
[358434210,1745145039026,-3900.77312846,0.00024348,5]
[358434211,1745145039035,-530.21,0.00024383,2]
[358434212,1745145039045,-774.8,0.00024383,2]
[358434213,1745145039055,-500.0,0.00024383,2]
[358434214,1745145039064,-858.12,0.00024383,2]
[358434215,1745145039074,-1543.49,0.00024383,2]
[358434216,1745145039085,-500.0,0.00024383,2]
[358434217,1745145039095,-15012.32481231,0.000244,2]
[358434218,1745145039104,-3503.2077781,0.00024452,2]
[358434219,1745145039115,-38933.13486013,0.00024552,2]
[358434220,1745145039126,-207353.40263262,0.00024552,2]
[358434237,1745145046332,-316.30000002,0.00019078,2]
[358434240,1745145046495,-2944.36306439,0.00019078,2]
[358434241,1745145046506,-502.405,0.00020655,2]
[358434243,1745145046516,-3260.66306436,0.00022843,2]
[358434244,1745145046526,-123713.46250725,0.00024552,2]
[358434245,1745145046535,-500.0,0.00024573,2]
[358434246,1745145046545,-500.0,0.00024573,2]
[358434247,1745145046554,-500.0,0.00024573,2]
[358434248,1745145046564,-500.0,0.00024573,2]
[358434249,1745145046574,-506.50653932,0.00024573,2]
[358434250,1745145046583,-500.0,0.00024573,2]
[358434251,1745145046593,-500.0,0.00024573,2]
[358434252,1745145046602,-500.0,0.00024573,2]
[358434253,1745145046612,-500.0,0.00024573,2]
[358434254,1745145046621,-500.0,0.00024573,2]
[358434255,1745145046631,-500.0,0.00024573,2]
[358434256,1745145046640,-500.0,0.00024573,2]
[358434257,1745145046650,-500.0,0.00024573,2]
[358434258,1745145046659,-500.0,0.00024573,2]
[358434259,1745145046669,-500.0,0.00024573,2]
[358434260,1745145046678,-500.0,0.00024573,2]
[358434261,1745145046688,-153.69,0.000246,31]
[358434262,1745145046698,-153.69,0.000246,31]
[358434263,1745145046708,-153.69,0.000246,31]
[358434264,1745145046717,-153.69,0.000246,31]
[358434265,1745145046727,-153.69,0.000246,31]
[358434266,1745145046736,-153.69,0.000246,31]
[358434267,1745145046745,-153.69,0.000246,31]
[358434268,1745145046755,-153.69,0.000246,31]
[358434269,1745145046764,-153.69,0.000246,31]
[358434270,1745145046774,-153.69,0.000246,31]
[358434271,1745145046783,-153.69,0.000246,31]
[358434272,1745145046792,-153.69,0.000246,31]
[358434273,1745145046801,-153.69,0.000246,31]
[358434274,1745145046811,-153.69,0.000246,31]
[358434275,1745145046821,-153.69,0.000246,31]
[358434276,1745145046831,-153.69,0.000246,31]
[358434277,1745145046840,-153.69,0.000246,31]
[358434278,1745145046850,-153.69,0.000246,31]
[358434279,1745145046860,-153.69,0.000246,31]
[358434280,1745145046869,-153.69,0.000246,31]
[358434281,1745145046879,-34898.93378805,0.00024651,2]
[358434282,1745145046888,-530.21,0.00024657,2]
[358434283,1745145046898,-774.8,0.00024657,2]
[358434284,1745145046907,-500.0,0.00024657,2]
[358434285,1745145046917,-858.12,0.00024657,2]
[358434286,1745145046926,-1543.49,0.00024657,2]
[358434287,1745145046936,-647.71701383,0.00024657,2]
[358434288,1745145046945,-380.0,0.00024658,2]
[358434289,1745145046955,-200.0,0.00024658,15]
[358434290,1745145046964,-500.0,0.00024673,2]
[358434291,1745145046975,-949.9335635,0.00024676,2]
[358434292,1745145046984,-1200.0,0.00024698,2]
[358434293,1745145046993,-504.43616442,0.00024773,2]
[358434294,1745145047003,-551.23187757,0.00024799,2]
[358434295,1745145047012,-354.77992026,0.00024799,2]
[358434296,1745145047021,-200.0,0.000248,2]
[358434297,1745145047031,-81403.7177126,0.000248,2]
[358434298,1745145047040,-9044.85752362,0.000248,2]
[358434299,1745145047050,-112804.95304328,0.0002481,4]
[358434300,1745145047059,-704.061025,0.0002481,2]
[358434301,1745145047069,-704.061025,0.0002481,2]
[358434302,1745145047079,-151.0,0.0002481,7]
[358434303,1745145047088,-151.0,0.0002481,2]
[358434304,1745145047097,-170.50875,0.0002481,7]
[358434305,1745145047106,-823.0,0.0002482,2]
[358434306,1745145047115,-500.0,0.00024873,2]
[358434307,1745145047125,-500.0,0.00024873,2]
[358434308,1745145047134,-500.0,0.00024873,2]
[358434309,1745145047144,-500.0,0.00024873,2]
[358434310,1745145047153,-500.0,0.00024873,2]
[358434311,1745145047163,-500.0,0.00024873,2]
[358434312,1745145047173,-505.22366418,0.00024873,2]
[358434313,1745145047182,-2348.18417608,0.000249,2]
[358434317,1745145737169,-213.875356,0.00019,2]
[358434321,1745145783001,-242.85709562,0.00019,2]
[358434322,1745145795813,-163.30004836,0.00018972,2]
[358434323,1745145795835,-93.28743786,0.00019,2]
[358434324,1745145857595,-245.93256,0.00019,2]
[358434325,1745145898160,-170.77935996,0.000181,2]
[358434326,1745145901926,-115.89818384,0.000181,2]
[358434327,1745145901950,-36.10181616,0.00019,2]
[358434328,1745145910927,-211.79431192,0.00019,2]
[358434329,1745145938663,-234.15551216,0.00019,2]
[358434355,1745146232465,-167.6283707,0.000189,2]
[358434357,1745146232475,-2262.08730893,0.00019,2]
[358434363,1745146232522,-422.005,0.00019,2]
[358434365,1745146232535,-1411.21402632,0.00019,2]
[358434367,1745146232545,-151.0,0.00019067,2]
[358434369,1745146232554,-300.0,0.00019072,2]
[358434371,1745146232563,-300.0,0.00019072,2]
[358434373,1745146232573,-529.87471429,0.00019073,2]
[358434374,1745146232583,-592.78361785,0.00019073,2]
[358434375,1745146232593,-500.0,0.00019073,2]
[358434376,1745146232602,-500.0,0.00019073,2]
[358434378,1745146232612,-500.0,0.00019073,2]
[358434380,1745146232625,-500.0,0.00019073,2]
[358434382,1745146232634,-500.0,0.00019073,2]
[358434384,1745146232644,-500.0,0.00019073,2]
[358434386,1745146232653,-482.16738711,0.00019077,2]
[358434388,1745146232663,-603.36339772,0.00019077,2]
[358434390,1745146232674,-603.36339772,0.00019077,2]
[358434392,1745146232684,-603.36339772,0.00019077,2]
[358434394,1745146232697,-603.36339772,0.00019077,2]
[358434395,1745146232707,-603.36339772,0.00019077,2]
[358434396,1745146232717,-603.36339772,0.00019077,2]
[358434397,1745146232727,-603.36339772,0.00019077,2]
[358434398,1745146232736,-603.36339772,0.00019077,2]
[358434399,1745146232746,-603.36339772,0.00019077,2]
[358434400,1745146232755,-603.36339772,0.00019077,2]
[358434401,1745146232765,-603.36339772,0.00019077,2]
[358434402,1745146232774,-603.36339772,0.00019077,2]
[358434403,1745146232793,-603.36339772,0.00019077,2]
[358434404,1745146232803,-603.36339772,0.00019077,2]
[358434405,1745146232813,-603.36339772,0.00019077,2]
[358434406,1745146232822,-603.36339772,0.00019077,2]
[358434407,1745146232832,-603.36339772,0.00019077,2]
[358434408,1745146232842,-603.36339772,0.00019077,2]
[358434409,1745146232851,-603.36339772,0.00019077,2]
[358434410,1745146232861,-603.36339772,0.00019077,2]
[358434411,1745146232871,-603.36339772,0.00019077,2]
[358434412,1745146232880,-603.36339772,0.00019077,2]
[358434413,1745146232890,-603.36339772,0.00019077,2]
[358434414,1745146232900,-603.36339772,0.00019077,2]
[358434415,1745146232910,-603.36339772,0.00019077,2]
[358434416,1745146232920,-603.36339772,0.00019077,2]
[358434417,1745146232930,-603.36339772,0.00019077,2]
[358434418,1745146232940,-603.36339772,0.00019077,2]
[358434419,1745146232950,-603.36339772,0.00019077,2]
[358434420,1745146232960,-603.36339772,0.00019077,2]
[358434421,1745146232970,-603.36339772,0.00019077,2]
[358434422,1745146232979,-603.36339772,0.00019077,2]
[358434423,1745146232991,-603.36339772,0.00019077,2]
[358434424,1745146233002,-603.36339772,0.00019077,2]
[358434425,1745146233012,-603.36339772,0.00019077,2]
[358434426,1745146233022,-603.36339772,0.00019077,2]
[358434427,1745146233032,-603.36339772,0.00019077,2]
[358434428,1745146233041,-603.36339772,0.00019077,2]
[358434429,1745146233052,-603.36339772,0.00019077,2]
[358434430,1745146233062,-603.36339772,0.00019077,2]
[358434431,1745146233071,-603.36339772,0.00019077,2]
[358434432,1745146233080,-603.36339772,0.00019077,2]
[358434433,1745146233089,-603.36339772,0.00019077,2]
[358434434,1745146233099,-603.36339772,0.00019077,2]
[358434435,1745146233108,-603.36339772,0.00019077,2]
[358434436,1745146233118,-603.36339772,0.00019077,2]
[358434437,1745146233128,-603.36339772,0.00019077,2]
[358434438,1745146233137,-603.36339772,0.00019077,2]
[358434439,1745146233148,-603.36339772,0.00019077,2]
[358434440,1745146233158,-603.36339772,0.00019077,2]
[358434441,1745146233167,-603.36339772,0.00019077,2]
[358434442,1745146233177,-603.36339772,0.00019077,2]
[358434443,1745146233187,-603.36339772,0.00019077,2]
[358434444,1745146233197,-603.36339772,0.00019077,2]
[358434445,1745146233208,-603.36339772,0.00019077,2]
[358434446,1745146233221,-322.77935996,0.00019077,2]
[358434447,1745146233231,-593.93584462,0.00019077,2]
[358434448,1745146233242,-593.93584462,0.00019077,2]
[358434449,1745146233253,-593.93584462,0.00019077,2]
[358434450,1745146233263,-593.93584462,0.00019077,2]
[358434451,1745146233272,-593.93584462,0.00019077,2]
[358434452,1745146233283,-593.93584462,0.00019077,2]
[358434453,1745146233292,-593.93584462,0.00019077,2]
[358434454,1745146233302,-593.93584462,0.00019077,2]
[358434455,1745146233312,-593.93584462,0.00019077,2]
[358434456,1745146233321,-593.93584462,0.00019077,2]
[358434457,1745146233331,-593.93584462,0.00019077,2]
[358434458,1745146233342,-593.93584462,0.00019077,2]
[358434459,1745146233352,-593.93584462,0.00019077,2]
[358434460,1745146233362,-593.93584462,0.00019077,2]
[358434461,1745146233372,-593.93584462,0.00019077,2]
[358434462,1745146233382,-593.93584462,0.00019077,2]
[358434463,1745146233392,-593.93584462,0.00019077,2]
[358434464,1745146233402,-593.93584462,0.00019077,2]
[358434465,1745146233412,-593.93584462,0.00019077,2]
[358434466,1745146233423,-593.93584462,0.00019077,2]
[358434467,1745146233432,-593.93584462,0.00019077,2]
[358434468,1745146233443,-593.93584462,0.00019077,2]
[358434469,1745146233453,-593.93584462,0.00019077,2]
[358434470,1745146233463,-593.93584462,0.00019077,2]
[358434471,1745146233473,-593.93584462,0.00019077,2]
[358434472,1745146233484,-593.93584462,0.00019077,2]
[358434473,1745146233495,-593.93584462,0.00019077,2]
[358434474,1745146233505,-593.93584462,0.00019077,2]
[358434475,1745146233515,-593.93584464,0.00019077,2]
[358434476,1745146233526,-593.93584464,0.00019077,2]
[358434477,1745146233536,-593.93584464,0.00019077,2]
[358434478,1745146233546,-593.93584464,0.00019077,2]
[358434479,1745146233556,-43677.28528387,0.00019078,2]
[358434480,1745146233571,-317.78000001,0.00019078,2]
[358434507,1745146241005,-0.03025469,0.00019078,2]
[358434567,1745146246611,-1686.0,0.00019078,2]
[358434568,1745146246627,-32415.55466885,0.00019078,2]
[358434571,1745146493668,2464.4868429,0.00018,2]
[358434572,1745146811803,208.19229443,4.9e-07,2]
[358434573,1745146884623,906.931388,0.00017978,2]
[358434602,1745147432613,-151.0,0.00018731,2]
[358434603,1745147432624,-2445.49729827,0.00018878,2]
[358434604,1745147432635,-300.0,0.00018972,2]
[358434605,1745147432644,-300.0,0.00018972,2]
[358434606,1745147432653,-500.0,0.00018973,2]
[358434607,1745147432663,-506.69676098,0.00018973,2]
[358434608,1745147432673,-500.0,0.00018973,2]
[358434609,1745147432691,-500.0,0.00018973,2]
[358434610,1745147432703,-500.0,0.00018973,2]
[358434611,1745147432713,-500.0,0.00018973,2]
[358434612,1745147432723,-500.0,0.00018973,2]
[358434613,1745147432735,-500.0,0.00018973,2]
[358434614,1745147432745,-500.0,0.00018977,2]
[358434615,1745147432755,-500.0,0.00018977,2]
[358434617,1745147432767,-500.0,0.00018977,2]
[358434618,1745147432777,-500.0,0.00018977,2]
[358434619,1745147432786,-500.0,0.00018977,2]
[358434620,1745147432796,-410.3940219,0.00018977,2]
[358434621,1745147432806,-500.0,0.00018977,2]
[358434622,1745147432815,-279.75829969,0.00018977,2]
[358434638,1745147438929,-220.24170031,0.00018977,2]
[358434639,1745147438939,-500.0,0.00018977,2]
[358434642,1745147438949,-500.0,0.00018977,2]
[358434644,1745147438959,-500.0,0.00018977,2]
[358434647,1745147438968,-500.0,0.00018977,2]
[358434651,1745147438979,-500.0,0.00018977,2]
[358434653,1745147438989,-476.5654287,0.00018977,2]
[358434654,1745147438998,-500.0,0.00018977,2]
[358434655,1745147439008,-500.0,0.00018977,2]
[358434656,1745147439017,-500.0,0.00018977,2]
[358434657,1745147439027,-500.0,0.00018977,2]
[358434658,1745147439037,-500.0,0.00018977,2]
[358434659,1745147439046,-500.0,0.00018977,2]
[358434660,1745147439056,-500.0,0.00018977,2]
[358434661,1745147439065,-337.87182323,0.00018977,2]
[358434694,1745147443796,-162.12817677,0.00018977,2]
[358434695,1745147443805,-5416.68035319,0.00018978,2]
[358434724,1745147446885,-16332.19074211,0.00018978,2]
[358434725,1745147446895,-477.80925789,0.00018978,3]
[358434731,1745148478688,293.45055956,0.00016,2]
[358434732,1745148500528,3098.14077499,0.000125,2]
[358434735,1745148530026,-1048.23816188,0.00016,2]
[358434798,1745148642871,-500.0,0.00018873,2]
[358434799,1745148642881,-300.0,0.00018876,2]
[358434800,1745148642890,-300.0,0.00018876,2]
[358434801,1745148642900,-500.0,0.00018877,2]
[358434802,1745148642909,-552.9517143,0.00018877,2]
[358434803,1745148642919,-500.0,0.00018877,2]
[358434804,1745148643096,-500.0,0.00018877,2]
[358434805,1745148643106,-416.18884159,0.00018877,2]
[358434806,1745148643116,-6199.44446298,0.00018877,2]
[358434844,1745148645942,-275.16655845,0.00018877,2]
[358434845,1745148645997,-385.22300047,0.00018877,2]
[358440088,1745149832001,-250.0,0.00017376,2]
[358440089,1745149832011,-740.5920688,0.00017764,2]
[358440090,1745149832021,-162.0455049,0.00018677,2]
[358440091,1745149832031,-162.04550488,0.00018715,2]
[358440092,1745149832040,-162.04550488,0.00018753,2]
[358440093,1745149832050,-151.0,0.00018767,2]
[358440094,1745149832059,-500.0,0.00018773,2]
[358440095,1745149832068,-500.0,0.00018773,2]
[358440096,1745149832077,-500.0,0.00018773,2]
[358440097,1745149832086,-500.0,0.00018773,2]
[358440098,1745149832096,-500.0,0.00018773,2]
[358440099,1745149832105,-382.76224991,0.00018773,2]
[358440100,1745149832114,-500.60912225,0.00018773,2]
[358440101,1745149832124,-300.0,0.00018775,2]
[358440102,1745149832132,-300.0,0.00018775,2]
[358440103,1745149832142,-157.35431574,0.00018776,2]
[358440104,1745149832151,-220.61372691,0.00018776,2]
[358440105,1745149832161,-199.93340118,0.00018776,2]
[358440106,1745149832170,-500.0,0.00018776,2]
[358440107,1745149832180,-201.93808442,0.00018776,2]
[358440108,1745149832194,-68328.60242391,0.00018777,2]
[358440109,1745149832204,-39539.26795552,0.00018777,2]
[358440110,1745149832214,-257.6525276,0.00018777,2]
[358440111,1745149832223,-4256.62828416,0.00018778,2]
[358440112,1745149832234,-306.91453332,0.00018778,2]
[358440113,1745149832245,-113408.38896473,0.00018778,2]
[358440114,1745149832256,-61229.99970232,0.00018778,2]
[358440115,1745149832269,-6961.84092669,0.00018778,2]
[358440123,1745149838270,-1514.68513603,0.00018677,2]
[358440124,1745149838281,-291.7261763,0.00018773,2]
[358440125,1745149838428,-1614.83479386,0.00018773,2]
[358440126,1745149838440,-500.0,0.00018773,2]
[358440127,1745149838452,-813.62704925,0.00018773,2]
[358440128,1745149838464,-9.78618745,0.00018773,2]
[358440129,1745149838474,-1541.14107682,0.00018778,3]
[358440130,1745149838484,-465.1495877,0.00018778,2]
[358440131,1745149838496,-416.351307,0.00018778,2]
[358440132,1745149838507,-3287.18794206,0.00018778,2]
[358440136,1745149840520,-1220.27528157,0.00018778,2]
[358440137,1745149840575,-994.5,0.00018778,2]
[358440138,1745149840587,-9598.5326794,0.00018778,2]
[358440151,1745149846217,-500.0,0.00018776,2]
[358440152,1745149846229,-36464.22312609,0.00018778,2]
[358440153,1745149846241,-672.0,0.00018778,2]
[358443384,1745149904232,1675.175396,0.00018,3]
[358444414,1745150845610,5207.93368988,0.00018,3]
[358444447,1745151032303,-421.8134147,0.00017882,2]
[358444448,1745151032313,-1325.349494,0.00018578,2]
[358444449,1745151032323,-282.27271936,0.00018667,2]
[358444450,1745151032332,-174.710812,0.00018668,2]
[358444451,1745151032341,-300.0,0.00018672,2]
[358444452,1745151032350,-500.0,0.00018673,2]
[358444453,1745151032359,-500.0,0.00018673,2]
[358444454,1745151032369,-500.0,0.00018673,2]
[358444455,1745151032378,-500.0,0.00018673,2]
[358444456,1745151032388,-500.0,0.00018673,2]
[358444457,1745151032397,-500.0,0.00018673,2]
[358444458,1745151032408,-300.0,0.00018675,2]
[358444459,1745151032418,-279.07398175,0.00018677,2]
[358444460,1745151032427,-500.0,0.00018677,2]
[358444461,1745151032436,-500.0,0.00018677,2]
[358444462,1745151032445,-500.0,0.00018677,2]
[358444463,1745151032455,-500.0,0.00018677,2]
[358444464,1745151032465,-310.62852004,0.00018677,2]
[358444465,1745151032475,-500.0,0.00018677,2]
[358444466,1745151032484,-500.0,0.00018677,2]
[358444467,1745151032494,-500.0,0.00018677,2]
[358444468,1745151032504,-2398.09697968,0.00018678,2]
[358444469,1745151032515,-6107.77775127,0.00018678,2]
[358444470,1745151032526,-13152.95735676,0.00018678,2]
[358444471,1745151032538,-589.29,0.00018678,2]
[358444472,1745151032549,-843.03880915,0.00018678,2]
[358444474,1745151038458,-11073.1403151,0.00018678,2]
[358444475,1745151038467,-1855.15428987,0.00018678,3]
[358444476,1745151038477,-9137.20684938,0.00018678,2]
[358444513,1745151040646,-2296.5912083,0.00018678,2]
[358444523,1745151046272,-500.0,0.00018677,2]
[358444524,1745151046282,-500.0,0.00018677,2]
[358444525,1745151046291,-416.18884159,0.00018677,2]
[358444526,1745151046301,-2984.22824476,0.00018678,2]
[358444537,1745152092723,-1126.0,0.00016,2]
[358444538,1745152118509,279.06835685,0.0001,2]
[358444539,1745152125739,622.85793217,9e-05,2]
[358444540,1745152127671,525.84125274,0.000175,4]
[358444541,1745152129368,572.96899904,0.000149,2]
[358444542,1745152129588,1000.0,0.0001,2]
[358444570,1745152232356,-123.38766765,0.00016,2]
[358444571,1745152232366,-300.0,0.00017447,2]
[358444572,1745152232375,-300.0,0.00017447,2]
[358444573,1745152232385,-18468.4500933,0.00017448,2]
[358444574,1745152232394,-202.801863,0.00017625,2]
[358444575,1745152232403,-739.2445615,0.00017667,2]
[358444576,1745152232413,-13633.281117,0.00017708,2]
[358444577,1745152232422,-582.51492119,0.0001838,2]
[358444578,1745152232431,-1126.18778728,0.00018477,2]
[358444579,1745152232440,-1126.18778725,0.000185,2]
[358444580,1745152232450,-1200.0,0.000185,12]
[358444581,1745152232459,-152.0,0.0001852,2]
[358444582,1745152232468,-4525.40237286,0.00018522,2]